[Event "Titled Tuesday Blitz February 28 Late 2023"]
[White "Nakamura, Hikaru"]
[Black "Indjic, Aleksandar"]
[WhiteFideId "2016192"]
[BlackFideId "911925"]
[WhiteElo "2879"]
[BlackElo "2625"]
[Result "1-0"]
[Round "11"]
[TimeControl "180+2"]
[Date "2023.02.28"]
[WhiteClock "0:00:54"]
[BlackClock "0:00:12"]

1. e4 {[%clk 0:03:00]}  e5 {[%clk 0:03:00]} 2. Bc4 {[%clk 0:02:59]}  Nf6 {[%clk 0:02:59]} 3. d3 {[%clk 0:03:00]}  Nc6 {[%clk 0:02:59]} 4. Nc3 {[%clk 0:03:00]}  Na5 {[%clk 0:02:54]} 5. Qf3 {[%clk 0:02:59]}  Nxc4 {[%clk 0:02:53]} 6. dxc4 {[%clk 0:03:00]}  d6 {[%clk 0:02:51]} 7. Nge2 {[%clk 0:03:01]}  c6 {[%clk 0:02:50]} 8. O-O {[%clk 0:02:58]}  Be6 {[%clk 0:02:48]} 9. b3 {[%clk 0:02:58]}  g6 {[%clk 0:02:48]} 10. h3 {[%clk 0:02:55]}  Bg7 {[%clk 0:02:38]} 11. Rd1 {[%clk 0:02:53]}  Qc7 {[%clk 0:02:38]} 12. Bg5 {[%clk 0:02:43]}  Qe7 {[%clk 0:02:29]} 13. Rd2 {[%clk 0:02:28]}  h6 {[%clk 0:02:25]} 14. Be3 {[%clk 0:02:28]}  O-O {[%clk 0:02:22]} 15. Rad1 {[%clk 0:02:27]}  Rfd8 {[%clk 0:02:22]} 16. Ng3 {[%clk 0:02:25]}  b6 {[%clk 0:02:02]} 17. a4 {[%clk 0:02:21]}  Rab8 {[%clk 0:01:54]} 18. Rd3 {[%clk 0:02:16]}  Ne8 {[%clk 0:01:42]} 19. Qe2 {[%clk 0:02:13]}  Qh4 {[%clk 0:01:35]} 20. Qd2 {[%clk 0:02:09]}  Rdc8 {[%clk 0:01:34]} 21. Nce2 {[%clk 0:02:01]}  Kh7 {[%clk 0:00:57]} 22. f4 {[%clk 0:01:49]}  exf4 {[%clk 0:00:57]} 23. Bxf4 {[%clk 0:01:49]}  Be5 {[%clk 0:00:57]} 24. Rf1 {[%clk 0:01:46]}  Bg7 {[%clk 0:00:52]} 25. Be3 {[%clk 0:01:23]}  Qe7 {[%clk 0:00:49]} 26. Bd4 {[%clk 0:01:22]}  Be5 {[%clk 0:00:48]} 27. Nf4 {[%clk 0:01:18]}  Rd8 {[%clk 0:00:43]} 28. Rdf3 {[%clk 0:01:18]}  f6 {[%clk 0:00:35]} 29. Qf2 {[%clk 0:01:13]}  Bf7 {[%clk 0:00:32]} 30. Nge2 {[%clk 0:01:13]}  Rb7 {[%clk 0:00:27]} 31. Nd3 {[%clk 0:01:13]}  Bg8 {[%clk 0:00:26]} 32. Be3 {[%clk 0:01:11]}  Qg7 {[%clk 0:00:25]} 33. Nd4 {[%clk 0:01:11]}  Re7 {[%clk 0:00:24]} 34. Nxc6 {[%clk 0:01:10]}  Red7 {[%clk 0:00:24]} 35. Nxd8 {[%clk 0:01:10]}  Rxd8 {[%clk 0:00:25]} 36. a5 {[%clk 0:01:07]}  bxa5 {[%clk 0:00:25]} 37. c5 {[%clk 0:01:08]}  a4 {[%clk 0:00:25]} 38. bxa4 {[%clk 0:01:06]}  Bc4 {[%clk 0:00:24]} 39. Nxe5 {[%clk 0:01:04]}  dxe5 {[%clk 0:00:23]} 40. Rb1 {[%clk 0:01:04]}  Rc8 {[%clk 0:00:22]} 41. Qd2 {[%clk 0:01:02]}  Be6 {[%clk 0:00:20]} 42. Rff1 {[%clk 0:01:00]}  g5 {[%clk 0:00:20]} 43. Qd3 {[%clk 0:00:57]}  Kg6 {[%clk 0:00:19]} 44. Qa6 {[%clk 0:00:56]}  Qd7 {[%clk 0:00:16]} 45. Rb7 {[%clk 0:00:54]}  Qc6 {[%clk 0:00:16]} 46. Qxc6 {[%clk 0:00:54]}  Rxc6 {[%clk 0:00:17]} 47. Rxa7 {[%clk 0:00:55]}  Rc8 {[%clk 0:00:12]} 48. Rb1 {[%clk 0:00:53]}  Bc4 {[%clk 0:00:12]} 49. Rb6 {[%clk 0:00:53]}  h5 {[%clk 0:00:12]} 50. c6 {[%clk 0:00:52]}  g4 {[%clk 0:00:12]} 51. hxg4 {[%clk 0:00:52]}  hxg4 {[%clk 0:00:13]} 52. c7 {[%clk 0:00:53]}  g3 {[%clk 0:00:11]} 53. Rb8 {[%clk 0:00:52]}  Nd6 {[%clk 0:00:11]} 54. Rxc8 {[%clk 0:00:53]}  Nxc8 {[%clk 0:00:11]} 55. Ra8 {[%clk 0:00:53]}  Be6 {[%clk 0:00:12]} 56. a5 {[%clk 0:00:54]} 1-0


[Site "https://www.chess.com"]

[Event "Titled Tuesday Blitz February 28 Late 2023"]
[White "Yu, Yangyi"]
[Black "Perez Ponsa, Federico"]
[WhiteFideId "8603820"]
[BlackFideId "117927"]
[WhiteElo "2783"]
[BlackElo "2592"]
[Result "1-0"]
[Round "11"]
[TimeControl "180+2"]
[Date "2023.02.28"]
[WhiteClock "0:00:16"]
[BlackClock "0:00:02"]

1. Nf3 {[%clk 0:02:58]}  Nf6 {[%clk 0:02:49]} 2. g3 {[%clk 0:02:57]}  g6 {[%clk 0:02:50]} 3. Bg2 {[%clk 0:02:58]}  Bg7 {[%clk 0:02:51]} 4. c4 {[%clk 0:02:58]}  O-O {[%clk 0:02:52]} 5. O-O {[%clk 0:02:59]}  d6 {[%clk 0:02:52]} 6. Nc3 {[%clk 0:02:59]}  Nc6 {[%clk 0:02:53]} 7. d3 {[%clk 0:02:57]}  e5 {[%clk 0:02:54]} 8. Rb1 {[%clk 0:02:57]}  a5 {[%clk 0:02:52]} 9. b3 {[%clk 0:02:58]}  h6 {[%clk 0:02:52]} 10. Bb2 {[%clk 0:02:58]}  Be6 {[%clk 0:02:53]} 11. Qd2 {[%clk 0:02:56]}  Qd7 {[%clk 0:02:53]} 12. e4 {[%clk 0:02:53]}  Bh3 {[%clk 0:02:51]} 13. Nd5 {[%clk 0:02:53]}  Bxg2 {[%clk 0:02:41]} 14. Kxg2 {[%clk 0:02:51]}  Rfe8 {[%clk 0:02:18]} 15. Nxf6+ {[%clk 0:02:47]}  Bxf6 {[%clk 0:02:16]} 16. Qxh6 {[%clk 0:02:48]}  Nb4 {[%clk 0:02:17]} 17. Qd2 {[%clk 0:02:42]}  Nxa2 {[%clk 0:02:11]} 18. Ba3 {[%clk 0:02:35]}  Nb4 {[%clk 0:02:09]} 19. Bxb4 {[%clk 0:02:36]}  axb4 {[%clk 0:02:10]} 20. Qxb4 {[%clk 0:02:36]}  c6 {[%clk 0:01:58]} 21. Ra1 {[%clk 0:02:36]}  Kg7 {[%clk 0:01:58]} 22. Qb6 {[%clk 0:02:32]}  Rh8 {[%clk 0:01:56]} 23. h4 {[%clk 0:02:12]}  Rab8 {[%clk 0:01:32]} 24. Rh1 {[%clk 0:02:09]}  Qg4 {[%clk 0:01:32]} 25. Ra7 {[%clk 0:01:54]}  Bd8 {[%clk 0:01:05]} 26. Qe3 {[%clk 0:01:51]}  b5 {[%clk 0:00:54]} 27. c5 {[%clk 0:01:38]}  Qe6 {[%clk 0:00:47]} 28. d4 {[%clk 0:01:33]}  exd4 {[%clk 0:00:37]} 29. Nxd4 {[%clk 0:01:26]}  Qf6 {[%clk 0:00:32]} 30. Nxc6 {[%clk 0:01:21]}  Rc8 {[%clk 0:00:33]} 31. Nxd8 {[%clk 0:01:05]}  Rhxd8 {[%clk 0:00:34]} 32. cxd6 {[%clk 0:00:57]}  Qxd6 {[%clk 0:00:13]} 33. h5 {[%clk 0:00:57]}  Qd4 {[%clk 0:00:10]} 34. h6+ {[%clk 0:00:51]}  Kg8 {[%clk 0:00:04]} 35. h7+ {[%clk 0:00:50]}  Kh8 {[%clk 0:00:05]} 36. Qxd4+ {[%clk 0:00:48]}  Rxd4 {[%clk 0:00:06]} 37. Rxf7 {[%clk 0:00:48]}  Rxe4 {[%clk 0:00:06]} 38. Rf6 {[%clk 0:00:39]}  g5 {[%clk 0:00:07]} 39. Rf5 {[%clk 0:00:37]}  g4 {[%clk 0:00:04]} 40. Rxb5 {[%clk 0:00:37]}  Rf8 {[%clk 0:00:04]} 41. Rbh5 {[%clk 0:00:20]}  Re2 {[%clk 0:00:02]} 42. Rf1 {[%clk 0:00:20]}  Rb2 {[%clk 0:00:03]} 43. Rg5 {[%clk 0:00:18]}  Rxb3 {[%clk 0:00:02]} 44. Rxg4 {[%clk 0:00:19]}  Rb2 {[%clk 0:00:03]} 45. Rg5 {[%clk 0:00:16]}  Rd2 {[%clk 0:00:03]} 46. g4 {[%clk 0:00:16]}  Re2 {[%clk 0:00:03]} 47. Kg3 {[%clk 0:00:16]}  Rc2 {[%clk 0:00:04]} 48. f3 {[%clk 0:00:17]}  Rc3 {[%clk 0:00:04]} 49. Rf2 {[%clk 0:00:17]}  Rd3 {[%clk 0:00:04]} 50. Kg2 {[%clk 0:00:15]}  Rc3 {[%clk 0:00:05]} 51. Kg3 {[%clk 0:00:15]}  Rd3 {[%clk 0:00:05]} 52. Rg8+ {[%clk 0:00:15]}  Rxg8 {[%clk 0:00:02]} 53. hxg8=Q+ {[%clk 0:00:16]}  Kxg8 {[%clk 0:00:03]} 54. Ra2 {[%clk 0:00:15]}  Kg7 {[%clk 0:00:03]} 55. Ra6 {[%clk 0:00:14]}  Kf7 {[%clk 0:00:03]} 56. g5 {[%clk 0:00:14]}  Kg7 {[%clk 0:00:04]} 57. Kg4 {[%clk 0:00:15]}  Rd1 {[%clk 0:00:04]} 58. f4 {[%clk 0:00:15]}  Rb1 {[%clk 0:00:04]} 59. Ra7+ {[%clk 0:00:15]}  Kg8 {[%clk 0:00:04]} 60. f5 {[%clk 0:00:14]}  Rb6 {[%clk 0:00:02]} 61. Kh5 {[%clk 0:00:13]}  Rc6 {[%clk 0:00:03]} 62. f6 {[%clk 0:00:14]}  Rc8 {[%clk 0:00:01]} 63. Kg6 {[%clk 0:00:14]}  Rf8 {[%clk 0:00:01]} 64. Rg7+ {[%clk 0:00:14]}  Kh8 {[%clk 0:00:02]} 65. Rh7+ {[%clk 0:00:14]}  Kg8 {[%clk 0:00:02]} 66. f7+ {[%clk 0:00:15]}  Rxf7 {[%clk 0:00:02]} 67. Rxf7 {[%clk 0:00:16]}  Kh8 {[%clk 0:00:02]} 68. Rf8# {[%clk 0:00:16]} 1-0


[Site "https://www.chess.com"]

[Event "Titled Tuesday Blitz February 28 Late 2023"]
[White "Durarbayli, Vasif"]
[Black "Paravyan, David"]
[WhiteFideId "13402935"]
[BlackFideId "4194985"]
[WhiteElo "2543"]
[BlackElo "2577"]
[Result "1-0"]
[Round "11"]
[TimeControl "180+2"]
[Date "2023.02.28"]
[WhiteClock "0:00:02"]
[BlackClock "0:00:02"]

1. e4 {[%clk 0:03:00]}  e5 {[%clk 0:03:00]} 2. Nf3 {[%clk 0:03:01]}  Nf6 {[%clk 0:03:00]} 3. Nxe5 {[%clk 0:03:01]}  d6 {[%clk 0:03:01]} 4. Nf3 {[%clk 0:03:02]}  Nxe4 {[%clk 0:03:01]} 5. d4 {[%clk 0:03:02]}  d5 {[%clk 0:03:01]} 6. Bd3 {[%clk 0:03:03]}  Bd6 {[%clk 0:03:02]} 7. Nc3 {[%clk 0:03:03]}  Nxc3 {[%clk 0:03:01]} 8. bxc3 {[%clk 0:03:03]}  O-O {[%clk 0:03:01]} 9. O-O {[%clk 0:03:02]}  Nd7 {[%clk 0:03:02]} 10. h3 {[%clk 0:02:56]}  h6 {[%clk 0:02:55]} 11. c4 {[%clk 0:02:48]}  dxc4 {[%clk 0:02:54]} 12. Bxc4 {[%clk 0:02:49]}  Nb6 {[%clk 0:02:54]} 13. Bd3 {[%clk 0:02:47]}  Qf6 {[%clk 0:02:51]} 14. c4 {[%clk 0:02:36]}  Rd8 {[%clk 0:02:01]} 15. Be3 {[%clk 0:02:32]}  Bf5 {[%clk 0:01:56]} 16. Bxf5 {[%clk 0:02:05]}  Qxf5 {[%clk 0:01:57]} 17. Qb3 {[%clk 0:02:05]}  Bf8 {[%clk 0:01:50]} 18. c5 {[%clk 0:01:53]}  Nd5 {[%clk 0:01:50]} 19. Qxb7 {[%clk 0:01:53]}  Qe6 {[%clk 0:01:48]} 20. Qb3 {[%clk 0:01:46]}  Rab8 {[%clk 0:01:42]} 21. Qa3 {[%clk 0:01:41]}  Nb4 {[%clk 0:01:40]} 22. Rfc1 {[%clk 0:01:36]}  Nc6 {[%clk 0:01:39]} 23. Rab1 {[%clk 0:01:15]}  a5 {[%clk 0:01:39]} 24. Rb3 {[%clk 0:01:12]}  Rb4 {[%clk 0:01:39]} 25. Rxb4 {[%clk 0:01:09]}  axb4 {[%clk 0:01:39]} 26. Qb3 {[%clk 0:01:09]}  Qe4 {[%clk 0:01:15]} 27. Re1 {[%clk 0:01:07]}  Qf5 {[%clk 0:01:10]} 28. Rd1 {[%clk 0:01:05]}  Rd5 {[%clk 0:00:48]} 29. Re1 {[%clk 0:00:42]}  Rd8 {[%clk 0:00:34]} 30. Qc4 {[%clk 0:00:42]}  Be7 {[%clk 0:00:33]} 31. Qa6 {[%clk 0:00:25]}  Qd5 {[%clk 0:00:31]} 32. Qb7 {[%clk 0:00:25]}  Bf6 {[%clk 0:00:21]} 33. Qxc7 {[%clk 0:00:25]}  Ra8 {[%clk 0:00:21]} 34. Re2 {[%clk 0:00:20]}  Kh7 {[%clk 0:00:20]} 35. Rd2 {[%clk 0:00:16]}  Ra7 {[%clk 0:00:16]} 36. Qc8 {[%clk 0:00:14]}  Ne7 {[%clk 0:00:12]} 37. Qb8 {[%clk 0:00:12]}  Nc6 {[%clk 0:00:12]} 38. Qc8 {[%clk 0:00:12]}  Ra3 {[%clk 0:00:06]} 39. Qb7 {[%clk 0:00:11]}  Qe4 {[%clk 0:00:04]} 40. Qxf7 {[%clk 0:00:10]}  Ne7 {[%clk 0:00:02]} 41. d5 {[%clk 0:00:05]}  Nf5 {[%clk 0:00:02]} 42. Qe6 {[%clk 0:00:05]}  Qxe6 {[%clk 0:00:02]} 43. dxe6 {[%clk 0:00:05]}  Nxe3 {[%clk 0:00:02]} 44. fxe3 {[%clk 0:00:05]}  Rxe3 {[%clk 0:00:03]} 45. Rd6 {[%clk 0:00:02]}  Be7 {[%clk 0:00:04]} 46. Rc6 {[%clk 0:00:02]}  Re2 {[%clk 0:00:03]} 47. Nd4 {[%clk 0:00:02]}  Rxa2 {[%clk 0:00:03]} 48. Nf5 {[%clk 0:00:02]}  Bf6 {[%clk 0:00:03]} 49. e7 {[%clk 0:00:02]}  Re2 {[%clk 0:00:03]} 50. Rb6 {[%clk 0:00:02]}  Bxe7 {[%clk 0:00:01]} 51. Nxe7 {[%clk 0:00:03]}  Rxe7 {[%clk 0:00:02]} 52. Rxb4 {[%clk 0:00:04]}  Re1+ {[%clk 0:00:03]} 53. Kf2 {[%clk 0:00:03]}  Rc1 {[%clk 0:00:04]} 54. Rb5 {[%clk 0:00:04]}  Kg6 {[%clk 0:00:04]} 55. Rb6+ {[%clk 0:00:03]}  Kf5 {[%clk 0:00:04]} 56. Rc6 {[%clk 0:00:04]}  h5 {[%clk 0:00:04]} 57. Ke3 {[%clk 0:00:03]}  Rc2 {[%clk 0:00:04]} 58. g3 {[%clk 0:00:02]}  Rc3+ {[%clk 0:00:04]} 59. Kf2 {[%clk 0:00:02]}  g5 {[%clk 0:00:03]} 60. Rc8 {[%clk 0:00:01]}  Rc2+ {[%clk 0:00:03]} 61. Kf3 {[%clk 0:00:02]}  Rc3+ {[%clk 0:00:03]} 62. Kf2 {[%clk 0:00:02]}  Rc2+ {[%clk 0:00:04]} 63. Ke3 {[%clk 0:00:03]}  Rc3+ {[%clk 0:00:05]} 64. Kd4 {[%clk 0:00:03]}  Rxg3 {[%clk 0:00:05]} 65. c6 {[%clk 0:00:04]}  Ke6 {[%clk 0:00:05]} 66. Rd8 {[%clk 0:00:02]}  Rg1 {[%clk 0:00:01]} 67. c7 {[%clk 0:00:02]}  Rd1+ {[%clk 0:00:02]} 68. Ke3 {[%clk 0:00:02]} 1-0


[Site "https://www.chess.com"]

[Event "Titled Tuesday Blitz February 28 Late 2023"]
[White "Kramnik, Vladimir"]
[Black "Sjugirov, Sanan"]
[WhiteFideId "4101588"]
[BlackFideId "4189302"]
[WhiteElo "2712"]
[BlackElo "2569"]
[Result "0-1"]
[Round "11"]
[TimeControl "180+2"]
[Date "2023.02.28"]
[WhiteClock "0:00:03"]
[BlackClock "0:00:03"]

1. c4 {[%clk 0:03:00]}  e6 {[%clk 0:02:59]} 2. Nc3 {[%clk 0:02:59]}  d5 {[%clk 0:03:00]} 3. d4 {[%clk 0:02:58]}  c6 {[%clk 0:03:01]} 4. e3 {[%clk 0:02:55]}  Nf6 {[%clk 0:02:59]} 5. Nf3 {[%clk 0:02:55]}  Nbd7 {[%clk 0:02:59]} 6. Be2 {[%clk 0:02:55]}  Bd6 {[%clk 0:02:57]} 7. O-O {[%clk 0:02:55]}  O-O {[%clk 0:02:58]} 8. b3 {[%clk 0:02:54]}  b6 {[%clk 0:02:58]} 9. Bb2 {[%clk 0:02:53]}  Bb7 {[%clk 0:02:58]} 10. Rc1 {[%clk 0:02:52]}  Qe7 {[%clk 0:02:37]} 11. cxd5 {[%clk 0:02:47]}  exd5 {[%clk 0:02:31]} 12. Qc2 {[%clk 0:02:42]}  Rac8 {[%clk 0:02:21]} 13. Rfd1 {[%clk 0:02:41]}  Rfe8 {[%clk 0:02:20]} 14. Qf5 {[%clk 0:02:37]}  Nf8 {[%clk 0:02:10]} 15. g3 {[%clk 0:02:20]}  Rcd8 {[%clk 0:02:03]} 16. Qc2 {[%clk 0:02:11]}  Ng6 {[%clk 0:01:59]} 17. Bf1 {[%clk 0:02:10]}  h5 {[%clk 0:01:48]} 18. Bg2 {[%clk 0:02:10]}  h4 {[%clk 0:01:47]} 19. Ne2 {[%clk 0:01:56]}  Ne4 {[%clk 0:01:44]} 20. Nf4 {[%clk 0:01:52]}  hxg3 {[%clk 0:01:30]} 21. hxg3 {[%clk 0:01:51]}  Qf6 {[%clk 0:01:10]} 22. Nxg6 {[%clk 0:01:44]}  Qxg6 {[%clk 0:01:11]} 23. Ne5 {[%clk 0:01:44]}  Bxe5 {[%clk 0:01:10]} 24. dxe5 {[%clk 0:01:43]}  c5 {[%clk 0:01:11]} 25. Qe2 {[%clk 0:01:34]}  Bc6 {[%clk 0:00:58]} 26. Bf3 {[%clk 0:01:30]}  Ng5 {[%clk 0:00:56]} 27. Bg2 {[%clk 0:01:30]}  d4 {[%clk 0:00:52]} 28. exd4 {[%clk 0:01:26]}  Bxg2 {[%clk 0:00:50]} 29. Kxg2 {[%clk 0:01:25]}  Qc6+ {[%clk 0:00:50]} 30. f3 {[%clk 0:01:22]}  Ne6 {[%clk 0:00:40]} 31. dxc5 {[%clk 0:01:17]}  bxc5 {[%clk 0:00:40]} 32. Qe4 {[%clk 0:00:58]}  Qa6 {[%clk 0:00:35]} 33. a4 {[%clk 0:00:49]}  Rb8 {[%clk 0:00:31]} 34. Rd3 {[%clk 0:00:45]}  Red8 {[%clk 0:00:28]} 35. Rcd1 {[%clk 0:00:41]}  Rxd3 {[%clk 0:00:28]} 36. Rxd3 {[%clk 0:00:39]}  c4 {[%clk 0:00:26]} 37. Rd6 {[%clk 0:00:38]}  Qc8 {[%clk 0:00:24]} 38. f4 {[%clk 0:00:16]}  Rxb3 {[%clk 0:00:16]} 39. Bc1 {[%clk 0:00:16]}  Rd3 {[%clk 0:00:10]} 40. f5 {[%clk 0:00:11]}  Nc5 {[%clk 0:00:06]} 41. Qc6 {[%clk 0:00:10]}  Qxf5 {[%clk 0:00:02]} 42. Qxc5 {[%clk 0:00:09]}  Qf3+ {[%clk 0:00:02]} 43. Kg1 {[%clk 0:00:06]}  Qxg3+ {[%clk 0:00:02]} 44. Kf1 {[%clk 0:00:06]}  Rf3+ {[%clk 0:00:02]} 45. Ke2 {[%clk 0:00:03]}  Qg2+ {[%clk 0:00:03]} 0-1


[Site "https://www.chess.com"]

[Event "Titled Tuesday Blitz February 28 Late 2023"]
[White "Vasquez Schroeder, Rodrigo"]
[Black "Bortnyk, Olexandr"]
[WhiteFideId "3400042"]
[BlackFideId "14120828"]
[WhiteElo "2600"]
[BlackElo "2734"]
[Result "1/2-1/2"]
[Round "11"]
[TimeControl "180+2"]
[Date "2023.02.28"]
[WhiteClock "0:00:19"]
[BlackClock "0:00:12"]

1. d4 {[%clk 0:03:00]}  d6 {[%clk 0:03:00]} 2. Nf3 {[%clk 0:02:56]}  Nf6 {[%clk 0:03:00]} 3. c4 {[%clk 0:02:55]}  g6 {[%clk 0:03:00]} 4. g3 {[%clk 0:02:55]}  Bg7 {[%clk 0:03:01]} 5. Bg2 {[%clk 0:02:55]}  O-O {[%clk 0:03:02]} 6. O-O {[%clk 0:02:56]}  Bf5 {[%clk 0:03:02]} 7. Nc3 {[%clk 0:02:55]}  Ne4 {[%clk 0:03:03]} 8. Bd2 {[%clk 0:02:53]}  Re8 {[%clk 0:02:51]} 9. Nh4 {[%clk 0:02:53]}  Nxd2 {[%clk 0:02:51]} 10. Qxd2 {[%clk 0:02:53]}  Bc8 {[%clk 0:02:51]} 11. e3 {[%clk 0:02:47]}  Nc6 {[%clk 0:02:43]} 12. d5 {[%clk 0:02:41]}  Ne5 {[%clk 0:02:34]} 13. b3 {[%clk 0:02:42]}  c5 {[%clk 0:02:33]} 14. f4 {[%clk 0:02:27]}  Ng4 {[%clk 0:02:33]} 15. Rfe1 {[%clk 0:02:25]}  Qa5 {[%clk 0:02:33]} 16. Rac1 {[%clk 0:02:24]}  e5 {[%clk 0:01:54]} 17. h3 {[%clk 0:02:14]}  Nh6 {[%clk 0:01:29]} 18. g4 {[%clk 0:02:04]}  Bd7 {[%clk 0:01:21]} 19. f5 {[%clk 0:01:36]}  e4 {[%clk 0:01:06]} 20. Nxe4 {[%clk 0:01:32]}  Qxd2 {[%clk 0:01:07]} 21. Nxd2 {[%clk 0:01:33]}  Bb2 {[%clk 0:00:51]} 22. Rc2 {[%clk 0:01:32]}  Be5 {[%clk 0:00:44]} 23. Kf2 {[%clk 0:01:26]}  Kg7 {[%clk 0:00:28]} 24. Nhf3 {[%clk 0:01:24]}  gxf5 {[%clk 0:00:27]} 25. g5 {[%clk 0:01:24]}  Ng8 {[%clk 0:00:27]} 26. Nxe5 {[%clk 0:01:16]}  dxe5 {[%clk 0:00:27]} 27. b4 {[%clk 0:01:02]}  cxb4 {[%clk 0:00:26]} 28. Rb2 {[%clk 0:01:02]}  a5 {[%clk 0:00:26]} 29. a3 {[%clk 0:01:03]}  f6 {[%clk 0:00:11]} 30. gxf6+ {[%clk 0:00:59]}  Nxf6 {[%clk 0:00:12]} 31. axb4 {[%clk 0:00:59]}  a4 {[%clk 0:00:12]} 32. Ra1 {[%clk 0:00:52]}  e4 {[%clk 0:00:12]} 33. b5 {[%clk 0:00:50]}  Rec8 {[%clk 0:00:12]} 34. Rb4 {[%clk 0:00:49]}  Ne8 {[%clk 0:00:12]} 35. Rbxa4 {[%clk 0:00:49]}  Rxa4 {[%clk 0:00:13]} 36. Rxa4 {[%clk 0:00:49]}  Nd6 {[%clk 0:00:14]} 37. Bf1 {[%clk 0:00:49]}  Kf6 {[%clk 0:00:14]} 38. Ra7 {[%clk 0:00:42]}  Ke5 {[%clk 0:00:13]} 39. b6 {[%clk 0:00:41]}  f4 {[%clk 0:00:10]} 40. Ra3 {[%clk 0:00:32]}  Nf5 {[%clk 0:00:08]} 41. exf4+ {[%clk 0:00:29]}  Kxf4 {[%clk 0:00:08]} 42. Nb3 {[%clk 0:00:23]}  e3+ {[%clk 0:00:09]} 43. Ke1 {[%clk 0:00:23]}  Rg8 {[%clk 0:00:05]} 44. Nc1 {[%clk 0:00:22]}  Ke5 {[%clk 0:00:02]} 45. Ne2 {[%clk 0:00:18]}  Rc8 {[%clk 0:00:02]} 46. Rc3 {[%clk 0:00:17]}  Ba4 {[%clk 0:00:01]} 47. h4 {[%clk 0:00:17]}  Rg8 {[%clk 0:00:01]} 48. Bh3 {[%clk 0:00:17]}  Nd6 {[%clk 0:00:01]} 49. Rxe3+ {[%clk 0:00:17]}  Ne4 {[%clk 0:00:02]} 50. Nc3 {[%clk 0:00:15]}  Kd4 {[%clk 0:00:03]} 51. Rxe4+ {[%clk 0:00:15]}  Kxc3 {[%clk 0:00:04]} 52. Rg4 {[%clk 0:00:16]}  Re8+ {[%clk 0:00:03]} 53. Kf2 {[%clk 0:00:15]}  Bb3 {[%clk 0:00:04]} 54. d6 {[%clk 0:00:16]}  Bxc4 {[%clk 0:00:05]} 55. d7 {[%clk 0:00:16]}  Rf8+ {[%clk 0:00:05]} 56. Kg3 {[%clk 0:00:16]}  Bb5 {[%clk 0:00:05]} 57. Rg7 {[%clk 0:00:17]}  h5 {[%clk 0:00:05]} 58. Re7 {[%clk 0:00:17]}  Kd4 {[%clk 0:00:05]} 59. Re8 {[%clk 0:00:17]}  Rxe8 {[%clk 0:00:05]} 60. dxe8=Q {[%clk 0:00:17]}  Bxe8 {[%clk 0:00:06]} 61. Kf4 {[%clk 0:00:18]}  Kc5 {[%clk 0:00:06]} 62. Bg2 {[%clk 0:00:17]}  Kxb6 {[%clk 0:00:07]} 63. Kg5 {[%clk 0:00:18]}  Kc7 {[%clk 0:00:07]} 64. Bf3 {[%clk 0:00:17]}  b5 {[%clk 0:00:07]} 65. Kf4 {[%clk 0:00:17]}  Kd6 {[%clk 0:00:07]} 66. Ke3 {[%clk 0:00:17]}  Kc5 {[%clk 0:00:08]} 67. Kd2 {[%clk 0:00:17]}  Bg6 {[%clk 0:00:07]} 68. Kc3 {[%clk 0:00:17]}  b4+ {[%clk 0:00:08]} 69. Kb2 {[%clk 0:00:18]}  Bf7 {[%clk 0:00:08]} 70. Be2 {[%clk 0:00:18]}  Kd4 {[%clk 0:00:08]} 71. Bd1 {[%clk 0:00:18]}  Kd3 {[%clk 0:00:08]} 72. Bf3 {[%clk 0:00:18]}  Ke3 {[%clk 0:00:09]} 73. Bxh5 {[%clk 0:00:18]}  Bxh5 {[%clk 0:00:09]} 74. Kb3 {[%clk 0:00:18]}  Kf4 {[%clk 0:00:10]} 75. Kxb4 {[%clk 0:00:19]}  Kg4 {[%clk 0:00:11]} 76. Kc5 {[%clk 0:00:19]}  Kxh4 {[%clk 0:00:12]} 1/2-1/2


[Site "https://www.chess.com"]

[Event "Titled Tuesday Blitz February 28 Late 2023"]
[White "Martinez Alcantara, Jose Eduardo"]
[Black "EREBUNI91"]
[WhiteFideId "3805662"]
[WhiteElo "2712"]
[BlackElo "2731"]
[Result "1-0"]
[Round "11"]
[TimeControl "180+2"]
[Date "2023.02.28"]
[WhiteClock "0:00:01"]
[BlackClock "0:00:01"]

1. c4 {[%clk 0:03:00]}  e6 {[%clk 0:02:52]} 2. g3 {[%clk 0:03:01]}  Nf6 {[%clk 0:02:51]} 3. Nf3 {[%clk 0:03:02]}  Be7 {[%clk 0:02:50]} 4. Bg2 {[%clk 0:03:03]}  O-O {[%clk 0:02:47]} 5. O-O {[%clk 0:03:04]}  d5 {[%clk 0:02:46]} 6. b3 {[%clk 0:03:05]}  b6 {[%clk 0:02:45]} 7. Bb2 {[%clk 0:03:05]}  Bb7 {[%clk 0:02:44]} 8. e3 {[%clk 0:03:06]}  Nbd7 {[%clk 0:02:44]} 9. Qe2 {[%clk 0:03:06]}  c5 {[%clk 0:02:44]} 10. Nc3 {[%clk 0:03:06]}  Rc8 {[%clk 0:02:43]} 11. Rfd1 {[%clk 0:03:04]}  Qc7 {[%clk 0:02:41]} 12. Rac1 {[%clk 0:03:02]}  Qb8 {[%clk 0:02:41]} 13. cxd5 {[%clk 0:03:01]}  Nxd5 {[%clk 0:02:41]} 14. Nxd5 {[%clk 0:03:02]}  Bxd5 {[%clk 0:02:42]} 15. d4 {[%clk 0:03:02]}  Rfd8 {[%clk 0:02:40]} 16. e4 {[%clk 0:03:02]}  Bb7 {[%clk 0:02:39]} 17. d5 {[%clk 0:03:02]}  exd5 {[%clk 0:02:37]} 18. exd5 {[%clk 0:03:03]}  Bf6 {[%clk 0:02:37]} 19. Bh3 {[%clk 0:02:51]}  Qd6 {[%clk 0:02:32]} 20. Bxf6 {[%clk 0:02:42]}  Qxf6 {[%clk 0:02:33]} 21. Qd3 {[%clk 0:02:15]}  Rb8 {[%clk 0:02:26]} 22. Bg2 {[%clk 0:02:11]}  Ne5 {[%clk 0:02:19]} 23. Nxe5 {[%clk 0:02:12]}  Qxe5 {[%clk 0:02:20]} 24. Re1 {[%clk 0:02:12]}  Qf6 {[%clk 0:01:49]} 25. Re3 {[%clk 0:01:50]}  g6 {[%clk 0:01:40]} 26. Qc4 {[%clk 0:01:28]}  Rd7 {[%clk 0:01:33]} 27. Qa4 {[%clk 0:01:20]}  Rbd8 {[%clk 0:01:30]} 28. Rce1 {[%clk 0:01:05]}  Bxd5 {[%clk 0:01:14]} 29. Bxd5 {[%clk 0:01:05]}  Rxd5 {[%clk 0:01:15]} 30. Qxa7 {[%clk 0:01:05]}  Rd2 {[%clk 0:01:13]} 31. Rf1 {[%clk 0:01:06]}  Rb2 {[%clk 0:01:05]} 32. Kg2 {[%clk 0:00:35]}  Qc6+ {[%clk 0:01:02]} 33. Rf3 {[%clk 0:00:30]}  Rf8 {[%clk 0:00:49]} 34. Re1 {[%clk 0:00:24]}  Rc2 {[%clk 0:00:47]} 35. Re7 {[%clk 0:00:16]}  Qd5 {[%clk 0:00:47]} 36. a4 {[%clk 0:00:06]}  Rc3 {[%clk 0:00:44]} 37. Qb7 {[%clk 0:00:06]}  Qxb3 {[%clk 0:00:15]} 38. Rf6 {[%clk 0:00:02]}  Rc2 {[%clk 0:00:06]} 39. a5 {[%clk 0:00:02]}  Qb2 {[%clk 0:00:01]} 40. Rfxf7 {[%clk 0:00:01]} 1-0


[Site "https://www.chess.com"]